bitfinex/quotes_BTCUSD_20241028
["timestamp","ask_amount","ask_price","bid_price","bid_amount"]
[1730139031264,0.000819,69217.0,69215.0,0.69140491]
[1730139031751,0.000819,69217.0,69216.0,0.1005]
[1730139031988,0.000819,69217.0,69216.0,0.78813]
[1730139032204,0.000819,69217.0,69216.0,0.791599]
[1730139034488,0.000819,69217.0,69216.0,0.800599]
[1730139034719,0.000819,69217.0,69216.0,0.694099]
[1730139034955,0.145292,69217.0,69216.0,0.692099]
[1730139035222,0.000819,69217.0,69216.0,0.692099]
[1730139035696,0.000819,69217.0,69216.0,0.690999]
[1730139035957,0.000819,69217.0,69216.0,0.688699]
[1730139036430,0.31879581,69217.0,69216.0,0.688699]
[1730139036663,0.31879581,69217.0,69216.0,0.689699]
[1730139036890,0.31879581,69217.0,69216.0,0.68423]
[1730139037125,0.31879581,69217.0,69216.0,0.68923]
[1730139037347,0.31879581,69217.0,69216.0,0.68769688]
[1730139037832,0.31879581,69217.0,69216.0,0.68969688]
[1730139038066,0.000819,69217.0,69216.0,0.68969688]
[1730139039616,0.000819,69217.0,69216.0,0.68769688]
[1730139039839,0.000819,69217.0,69216.0,0.69069688]
[1730139041647,0.000819,69217.0,69216.0,1.01077188]
[1730139042500,0.000819,69217.0,69216.0,1.00777188]
[1730139042756,0.000819,69217.0,69216.0,1.02077188]
[1730139042988,0.000819,69217.0,69216.0,1.03477188]
[1730139043428,0.000819,69217.0,69216.0,1.03977188]
[1730139043870,0.000819,69217.0,69216.0,1.02677188]
[1730139044308,0.000819,69217.0,69216.0,1.04077188]
[1730139045197,0.000819,69217.0,69216.0,1.03577188]
[1730139045483,0.000819,69217.0,69216.0,1.02177188]
[1730139046161,0.000819,69217.0,69216.0,1.03577188]
[1730139046842,0.000819,69217.0,69216.0,0.89129688]
[1730139048387,0.000819,69217.0,69216.0,1.03577188]
[1730139048866,0.000819,69217.0,69216.0,0.89129688]
[1730139049387,0.000819,69217.0,69216.0,1.03577188]
[1730139049602,0.000819,69217.0,69216.0,0.89129688]
[1730139050896,0.000819,69217.0,69216.0,1.03577188]
[1730139052416,0.000819,69217.0,69216.0,1.20956813]
[1730139053081,0.000819,69217.0,69216.0,1.21121613]
[1730139053512,0.000819,69217.0,69216.0,1.04241988]
[1730139054396,0.000819,69217.0,69216.0,1.21121613]
[1730139055890,0.1,69230.0,69224.0,0.144456]
[1730139055891,0.06817047,69230.0,69224.0,0.144456]
[1730139056112,0.06817047,69230.0,69222.0,0.288925]
[1730139056113,0.06817047,69230.0,69229.0,0.16879625]
[1730139056331,0.06817047,69230.0,69229.0,0.86309493]
[1730139056332,0.21780956,69230.0,69229.0,0.86309493]
[1730139056543,0.023,69232.0,69229.0,0.86309493]
[1730139056778,0.144445,69231.0,69229.0,0.86309493]
[1730139057214,0.144445,69231.0,69229.0,0.86073625]
[1730139057431,0.144443,69231.0,69230.0,0.00335944]
[1730139057638,0.144443,69231.0,69230.0,0.69429944]
[1730139058052,0.167442,69232.0,69230.0,0.69429944]
[1730139058275,0.023,69233.0,69230.0,0.69429944]
[1730139058494,0.144442,69232.0,69230.0,0.69429944]
[1730139058928,0.023,69233.0,69230.0,0.69429944]
[1730139059134,0.144443,69231.0,69230.0,0.69429944]
[1730139059980,0.144443,69231.0,69230.0,0.69094]
[1730139060187,0.144443,69232.0,69230.0,0.69429944]
[1730139060390,0.144443,69231.0,69230.0,0.69429944]
[1730139060600,0.023,69233.0,69230.0,0.69429944]
[1730139060853,0.144443,69231.0,69230.0,0.69429944]
[1730139061262,0.3209658,69231.0,69230.0,0.69429944]
[1730139061478,0.023,69231.0,69230.0,0.69429944]
[1730139061670,0.29001775,69236.0,69230.0,0.69429944]
[1730139061671,0.14444,69233.0,69230.0,0.85973625]
[1730139061889,0.01352519,69232.0,69230.0,0.86309572]
[1730139062098,0.01352519,69231.0,69230.0,0.86309572]
[1730139062333,0.0243448,69231.0,69230.0,0.86309572]
[1730139064258,0.0243448,69231.0,69230.0,0.96179572]
[1730139064259,0.01352519,69231.0,69230.0,0.96179572]
[1730139064462,0.01081964,69231.0,69230.0,0.96179572]
[1730139064673,0.02434374,69231.0,69230.0,0.96179572]
[1730139064901,0.0135243,69231.0,69230.0,0.96179572]
[1730139065112,0.0135243,69231.0,69230.0,1.10624172]
[1730139065325,0.0135243,69231.0,69230.0,1.28503797]
[1730139065541,0.00114975,69236.0,69235.0,0.243135]
[1730139065754,0.00114975,69236.0,69235.0,1.10619174]
[1730139066450,0.00114975,69236.0,69235.0,0.96175674]
[1730139066883,0.01466821,69236.0,69235.0,0.96175674]
[1730139067316,0.00114975,69236.0,69235.0,0.96375674]
[1730139067540,0.00114975,69236.0,69235.0,0.96575674]
[1730139067760,0.288909,69248.0,69235.0,0.96575674]
[1730139067761,0.144414,69246.0,69241.0,0.16879625]
[1730139067971,0.0243304,69245.0,69242.0,0.69086]
[1730139068181,0.01081351,69244.0,69242.0,0.69420963]
[1730139068398,0.0243331,69243.0,69242.0,0.69420963]
[1730139069728,0.0243331,69243.0,69242.0,0.69720963]
[1730139070410,0.3452739,69243.0,69242.0,0.69720963]
[1730139070621,0.34225491,69243.0,69242.0,0.69720963]
[1730139071313,0.34225491,69243.0,69242.0,0.69386]
[1730139071561,0.34225491,69243.0,69242.0,0.69720963]
[1730139071562,0.0243331,69243.0,69242.0,0.69720963]
[1730139072019,0.0193331,69243.0,69242.0,0.69720963]
[1730139072256,0.144415,69245.0,69242.0,0.69420963]
[1730139072484,0.288827,69246.0,69242.0,0.69420963]
[1730139072724,0.023,69246.0,69242.0,0.69420963]
[1730139072944,0.144417,69244.0,69242.0,0.69420963]
[1730139073159,0.144418,69243.0,69242.0,0.69420963]
[1730139073372,0.31792181,69243.0,69242.0,0.69420963]
[1730139073582,0.17350381,69243.0,69242.0,0.69420963]
[1730139073843,0.31792181,69243.0,69242.0,0.69420963]
[1730139074312,0.31792181,69243.0,69242.0,0.69720963]
[1730139074548,0.30411143,69254.0,69242.0,0.69720963]
[1730139074549,0.04315093,69258.0,69244.0,0.288833]
[1730139074779,0.21780956,69252.0,69249.0,0.16879625]
[1730139074994,0.01351142,69251.0,69245.0,0.86297533]
[1730139075211,0.29180199,69257.0,69245.0,0.86297533]
[1730139075212,0.01932082,69250.0,69245.0,0.85963625]
[1730139075455,0.0108094,69250.0,69245.0,0.85963625]
[1730139075903,0.144401,69252.0,69245.0,0.85963625]
[1730139076578,0.023,69253.0,69245.0,0.85963625]
[1730139076789,0.144402,69251.0,69245.0,0.85963625]
[1730139077217,0.288804,69252.0,69245.0,0.86063625]
[1730139077420,0.144402,69251.0,69245.0,0.86063625]
[1730139077640,0.144405,69250.0,69245.0,0.86063625]
[1730139078088,0.144406,69249.0,69245.0,0.86063625]
[1730139078553,0.289628,69252.0,69245.0,0.85963625]
[1730139078554,0.000824,69252.0,69245.0,0.85963625]
[1730139078758,0.144404,69250.0,69245.0,0.85963625]
[1730139079044,0.144404,69250.0,69245.0,0.69184]
[1730139079258,0.144406,69249.0,69245.0,0.69184]
[1730139079471,0.144409,69248.0,69245.0,0.69084]
[1730139079930,0.144409,69248.0,69245.0,0.69184]
[1730139080153,0.000824,69252.0,69245.0,0.69184]
[1730139080353,0.000824,69252.0,69249.0,0.144405]
[1730139080576,0.000824,69252.0,69250.0,0.0789]
[1730139080798,0.000824,69252.0,69250.0,0.76971]
[1730139082235,0.000824,69252.0,69251.0,0.00331369]
[1730139082459,0.000824,69252.0,69250.0,0.76802369]
[1730139082682,0.000824,69252.0,69251.0,0.69401323]
[1730139082906,0.000824,69252.0,69251.0,0.93701523]
[1730139083374,0.000824,69252.0,69251.0,0.79261323]
[1730139083644,0.000824,69252.0,69251.0,0.93701523]
[1730139083869,0.000824,69252.0,69251.0,1.26631529]
[1730139084382,0.000824,69252.0,69251.0,1.09851904]
[1730139084625,0.000824,69252.0,69251.0,1.26631529]
[1730139084852,0.000824,69252.0,69251.0,1.09751904]
[1730139085078,0.000824,69252.0,69251.0,1.27331529]
[1730139085549,0.000824,69252.0,69251.0,1.35571529]
[1730139085770,0.0366297,69267.0,69258.0,0.005]
[1730139085993,0.0366297,69267.0,69264.0,0.1791]
[1730139086222,0.0366297,69267.0,69266.0,0.16879625]
[1730139086453,0.02786413,69267.0,69266.0,0.50226625]
[1730139086699,0.02786413,69267.0,69266.0,1.02733868]
[1730139087179,0.02786413,69267.0,69266.0,1.19113493]
[1730139088118,0.02786413,69267.0,69266.0,1.20513493]
[1730139089044,0.02786413,69267.0,69266.0,1.07476493]
[1730139089544,0.17223213,69267.0,69266.0,0.72186868]
[1730139089783,0.17223213,69267.0,69266.0,0.68886868]
[1730139090220,0.18569973,69267.0,69266.0,0.71686868]
[1730139090463,0.18569973,69267.0,69266.0,0.70286868]
[1730139090702,0.18569973,69267.0,69266.0,0.70386868]
[1730139090926,0.18652273,69267.0,69266.0,0.70386868]
[1730139091178,0.36002654,69267.0,69266.0,0.70386868]
[1730139091421,0.370801,69267.0,69266.0,0.68986868]
[1730139091658,0.380801,69267.0,69266.0,0.68986868]
[1730139091889,0.480801,69267.0,69266.0,0.68671]
[1730139092109,0.48080598,69267.0,69266.0,0.68671]
[1730139092330,0.48080598,69267.0,69266.0,0.68974074]
[1730139092552,0.48080598,69267.0,69266.0,0.69074074]
[1730139092773,0.48080598,69267.0,69266.0,0.68974074]
[1730139093261,0.48280598,69267.0,69266.0,0.69074074]
[1730139093917,0.48250598,69267.0,69266.0,0.69074074]
[1730139094843,0.48250598,69267.0,69266.0,0.68771]
[1730139095075,0.48250598,69267.0,69266.0,0.6909975]
[1730139095585,0.20513798,69267.0,69266.0,0.85979375]
[1730139095836,0.05463417,69267.0,69266.0,0.85979375]
[1730139096055,0.04385971,69267.0,69266.0,0.85979375]
[1730139096273,0.03038713,69267.0,69266.0,0.85879375]
[1730139096511,0.04186823,69267.0,69266.0,0.85779375]
[1730139096726,0.05634933,69267.0,69266.0,0.6889975]
[1730139097180,0.05534933,69267.0,69266.0,0.6889975]
[1730139097624,0.05534933,69267.0,69266.0,0.7029975]
[1730139097858,0.05534933,69267.0,69266.0,0.6889975]
[1730139098102,0.05534933,69267.0,69266.0,0.6899975]
[1730139098326,0.07834933,69267.0,69266.0,0.6899975]
[1730139098545,0.07834933,69267.0,69266.0,0.6889975]
[1730139098788,0.07834933,69267.0,69266.0,0.7029975]
[1730139099011,0.06486823,69267.0,69266.0,0.7029975]
[1730139099238,0.07835,69267.0,69266.0,0.7029975]
[1730139099499,0.07834973,69267.0,69266.0,0.6889975]
[1730139099695,0.07834973,69267.0,69266.0,0.7009975]
[1730139100144,0.07835038,69267.0,69266.0,0.7009975]
[1730139100365,0.07835064,69267.0,69266.0,0.7009975]
[1730139100590,0.06486888,69267.0,69266.0,0.7009975]
[1730139100838,0.22573921,69267.0,69266.0,0.7009975]
[1730139101085,0.22573921,69267.0,69266.0,0.6969975]
[1730139101308,0.22573921,69267.0,69266.0,0.6989975]
[1730139101543,0.08137121,69267.0,69266.0,0.6989975]
[1730139101789,0.22272022,69267.0,69266.0,0.6969975]
[1730139102248,0.07835222,69267.0,69266.0,0.6969975]
[1730139102728,0.54202028,69267.0,69266.0,0.6986435]
[1730139102949,0.65402028,69267.0,69266.0,0.6986435]
[1730139103207,0.73122028,69267.0,69266.0,0.7026435]
[1730139103442,0.73122028,69267.0,69266.0,0.699356]
[1730139103675,0.72922028,69267.0,69266.0,0.70243879]
[1730139104112,0.73122028,69267.0,69266.0,0.69443879]
[1730139104333,0.73222028,69267.0,69266.0,0.69143879]
[1730139104553,0.73222028,69267.0,69266.0,0.69243879]
[1730139104794,0.74301745,69267.0,69266.0,0.69243879]
[1730139105006,0.74101745,69267.0,69266.0,0.69243879]
[1730139105955,0.74301745,69267.0,69266.0,0.69243879]
[1730139106610,0.74101745,69267.0,69266.0,0.69243879]
[1730139107105,0.74101745,69267.0,69266.0,0.689356]
[1730139107560,0.74101745,69267.0,69266.0,0.69243879]
[1730139107785,0.74104231,69267.0,69266.0,0.69243879]
[1730139108018,0.31767806,69267.0,69266.0,0.69243879]
[1730139108255,0.17989094,69267.0,69266.0,0.69243879]
[1730139108470,0.06718792,69267.0,69266.0,0.689356]
[1730139108718,0.06718792,69267.0,69266.0,0.69243879]
[1730139108944,0.06718792,69267.0,69266.0,0.69143879]
[1730139108945,0.04288741,69267.0,69266.0,0.69143879]
[1730139109169,0.04188741,69267.0,69266.0,0.83580879]
[1730139109387,0.05538845,69267.0,69266.0,0.69143879]
[1730139109607,0.05638845,69267.0,69266.0,0.69143879]
[1730139109819,0.05538845,69267.0,69266.0,0.69143879]
[1730139110034,0.05538845,69267.0,69266.0,0.70543879]
[1730139110500,0.05538845,69267.0,69266.0,0.69143879]
[1730139110716,0.05538845,69267.0,69266.0,0.70543879]
[1730139110934,0.05538845,69267.0,69266.0,0.70443879]
[1730139111118,0.05538845,69267.0,69266.0,0.71843879]
[1730139111567,0.02838713,69267.0,69266.0,0.71843879]
[1730139111808,0.05539645,69267.0,69266.0,0.71843879]
[1730139112230,0.05539645,69267.0,69266.0,0.70443879]
[1730139112497,0.07839645,69267.0,69266.0,0.71843879]
[1730139112665,0.09221991,69267.0,69266.0,0.71843879]
[1730139113400,0.09141991,69267.0,69266.0,0.71843879]
[1730139113832,0.08840092,69267.0,69266.0,0.71843879]
[1730139114507,0.06540092,69267.0,69266.0,0.71843879]
[1730139114757,0.05459645,69267.0,69266.0,0.71843879]
[1730139115164,0.04109179,69267.0,69266.0,0.71843879]
[1730139115383,0.05459814,69267.0,69266.0,0.71843879]
[1730139115603,0.05459814,69267.0,69266.0,0.86280879]
[1730139115834,0.05459814,69267.0,69266.0,0.71843879]
[1730139117175,0.02758713,69267.0,69266.0,0.94080879]
[1730139117396,0.05460034,69267.0,69266.0,1.10960504]
[1730139117603,0.04109345,69267.0,69266.0,1.10960504]
[1730139117790,0.04109365,69267.0,69266.0,1.10960504]
[1730139117938,0.02758713,69267.0,69266.0,1.10960504]
[1730139118346,0.04109337,69267.0,69266.0,0.96523504]
[1730139118965,0.04109337,69267.0,69266.0,0.79643879]
[1730139119381,0.02758713,69267.0,69266.0,0.79643879]
[1730139119587,0.04109463,69267.0,69266.0,0.79643879]
[1730139120213,0.02758713,69267.0,69266.0,0.79643879]
[1730139120631,0.04109401,69267.0,69266.0,0.79643879]
[1730139120850,0.04109442,69267.0,69266.0,0.94080879]
[1730139121271,0.04109442,69267.0,69266.0,1.03930879]
[1730139121471,0.04109442,69267.0,69266.0,1.04430879]
[1730139121673,0.0410934,69267.0,69266.0,1.04430879]
[1730139121880,0.02758713,69267.0,69266.0,1.04430879]
[1730139122397,0.02758713,69267.0,69266.0,1.04930879]
[1730139123158,0.02758713,69267.0,69266.0,1.03530879]
[1730139123384,0.02758713,69267.0,69266.0,1.02130879]
[1730139123615,0.02758713,69267.0,69266.0,1.03530879]
[1730139123835,0.02758713,69267.0,69266.0,1.04930879]
[1730139124052,0.02758713,69267.0,69266.0,1.02130879]
[1730139124279,0.02758713,69267.0,69266.0,1.03530879]
[1730139124498,0.02758713,69267.0,69266.0,1.04930879]
[1730139125816,0.02758713,69267.0,69266.0,1.02130879]
[1730139126025,0.02758713,69267.0,69266.0,1.03530879]
[1730139126281,0.02758713,69267.0,69266.0,0.88593879]
[1730139126518,0.02758713,69267.0,69266.0,1.04430879]
[1730139126947,0.02758713,69267.0,69266.0,1.01630879]
[1730139127191,0.02758713,69267.0,69266.0,1.03030879]
[1730139127842,0.02758713,69267.0,69266.0,1.04430879]
[1730139133446,0.02758713,69267.0,69266.0,0.89993879]
[1730139133664,0.02758713,69267.0,69266.0,1.04430879]
[1730139134971,0.144337,69283.0,69266.0,1.04430879]
[1730139134972,0.023,69281.0,69272.0,0.005]
[1730139135201,0.04082882,69280.0,69273.0,0.69870608]
[1730139135413,0.03780983,69279.0,69273.0,0.69870608]
[1730139135639,0.03780983,69278.0,69273.0,0.69870608]
[1730139135852,0.03780983,69277.0,69273.0,0.69870608]
[1730139136055,0.02700702,69276.0,69273.0,0.69870608]
[1730139136276,0.02700702,69275.0,69273.0,0.69870608]
[1730139136516,0.02700702,69274.0,69273.0,0.71270608]
[1730139136763,0.00301899,69280.0,69273.0,0.71270608]
[1730139136998,0.02702102,69274.0,69273.0,0.72670608]
[1730139137225,0.02702102,69274.0,69273.0,0.71270608]
[1730139138338,0.02702102,69274.0,69273.0,0.69870608]
[1730139138550,0.02702102,69274.0,69273.0,0.71270608]
[1730139139197,0.02702102,69274.0,69273.0,0.72670608]
[1730139139674,0.02702102,69274.0,69273.0,0.87106208]
[1730139140123,0.02702102,69274.0,69273.0,0.72670608]
[1730139140345,0.21133822,69274.0,69273.0,0.72670608]
[1730139140570,0.21135284,69274.0,69273.0,0.72367]
[1730139140788,0.21135284,69274.0,69273.0,0.72670723]
[1730139141478,0.21135284,69274.0,69273.0,0.69870723]
[1730139141742,0.21135284,69274.0,69273.0,0.71270723]
[1730139141959,0.21135284,69274.0,69273.0,0.72670723]
[1730139142180,0.21135284,69274.0,69273.0,0.69870723]
[1730139142428,0.21135284,69274.0,69273.0,0.71270723]
[1730139142645,0.21135284,69274.0,69273.0,0.72670723]
[1730139142865,0.21135284,69274.0,69273.0,0.71270723]
[1730139143092,0.21135284,69274.0,69273.0,0.70270723]
[1730139143751,0.35570684,69274.0,69273.0,0.70270723]
[1730139144735,0.35570684,69274.0,69273.0,0.69967]
[1730139144979,0.2113613,69274.0,69273.0,0.70271071]
[1730139145459,0.2113613,69274.0,69273.0,0.69871071]
[1730139145460,0.03885749,69274.0,69273.0,0.69871071]
[1730139145671,0.03885749,69274.0,69273.0,0.79521071]
[1730139145902,0.03785749,69274.0,69273.0,0.93956671]
[1730139146120,0.03785749,69274.0,69273.0,0.79421071]
[1730139146342,0.03885749,69274.0,69273.0,0.79421071]
[1730139146561,0.03885749,69274.0,69273.0,0.79721071]
[1730139146787,0.03885749,69274.0,69273.0,0.94656671]
[1730139147011,0.02804348,69274.0,69273.0,0.80221071]
[1730139147524,0.03886338,69274.0,69273.0,0.80221071]
[1730139147758,0.03886338,69274.0,69273.0,0.79921071]
[1730139147759,0.03786338,69274.0,69273.0,0.79921071]
[1730139148210,0.03786338,69274.0,69273.0,0.80321071]
[1730139148470,0.03786338,69274.0,69273.0,0.69871071]
[1730139148471,0.21136719,69274.0,69273.0,0.69871071]
[1730139148689,0.35572119,69274.0,69273.0,0.69871071]
[1730139149169,0.35572119,69274.0,69273.0,0.69567]
[1730139149383,0.35572119,69274.0,69273.0,0.70372019]
[1730139149604,0.35572119,69274.0,69273.0,0.69972019]
[1730139150727,0.35572119,69274.0,69273.0,0.69872019]
[1730139150949,0.35672119,69274.0,69273.0,0.69972019]
[1730139152085,0.34590919,69274.0,69273.0,0.69972019]
[1730139152297,0.34590919,69274.0,69273.0,0.69667]
[1730139152298,0.21237504,69274.0,69273.0,0.69667]
[1730139152724,0.21237504,69274.0,69273.0,0.69972114]
[1730139156176,0.20155709,69274.0,69273.0,0.69972114]
[1730139156550,0.2123808,69274.0,69273.0,0.69972114]
[1730139156693,0.23704721,69274.0,69273.0,0.69972114]
[1730139156903,0.26951682,69274.0,69273.0,0.69972114]
[1730139158470,0.25869455,69274.0,69273.0,0.69972114]
[1730139160483,0.39895697,69274.0,69273.0,0.69972114]
[1730139160730,0.29895697,69274.0,69273.0,0.69972114]
[1730139160964,0.29895697,69274.0,69273.0,0.69667]
[1730139161178,0.29895697,69274.0,69273.0,0.70136052]
[1730139161602,0.10517175,69274.0,69273.0,0.70136052]
[1730139161812,0.08217175,69274.0,69273.0,0.80026052]
[1730139162282,0.07134804,69274.0,69273.0,0.87576052]
[1730139162504,0.08217021,69274.0,69273.0,0.87576052]
[1730139162731,0.06052279,69274.0,69273.0,0.87576052]
[1730139162952,0.02805328,69274.0,69273.0,0.87576052]
[1730139163158,0.06052033,69274.0,69273.0,0.87576052]
[1730139163831,0.03617618,69274.0,69273.0,0.87576052]
[1730139164054,0.03888204,69274.0,69273.0,0.87576052]
[1730139164930,0.06053011,69274.0,69273.0,0.87576052]
[1730139165833,0.04970667,69274.0,69273.0,1.02011652]
[1730139166060,0.0280586,69274.0,69273.0,0.87576052]
[1730139166478,0.04970452,69274.0,69273.0,0.87576052]
[1730139166892,0.0497031,69274.0,69273.0,0.87576052]
[1730139167114,0.0280586,69274.0,69273.0,0.87576052]
[1730139167395,0.0145293,69274.0,69273.0,0.87576052]
[1730139167601,0.02805602,69274.0,69273.0,0.87576052]
[1730139167810,0.02805602,69274.0,69273.0,1.02011652]
[1730139168012,0.01452672,69274.0,69273.0,0.87576052]
[1730139169023,0.04969747,69274.0,69273.0,0.87576052]
[1730139169437,0.06051924,69274.0,69273.0,0.87576052]
[1730139169860,0.02534898,69274.0,69273.0,1.02011652]
[1730139170074,0.02534898,69274.0,69273.0,1.02511652]
[1730139170313,0.01452721,69274.0,69273.0,1.02511652]
[1730139170967,0.04158077,69274.0,69273.0,1.02511652]
[1730139171173,0.02805399,69274.0,69273.0,0.88076052]
[1730139171383,0.02805399,69274.0,69273.0,1.02511652]
[1730139171606,0.02805399,69274.0,69273.0,0.88076052]
[1730139172043,0.02805399,69274.0,69273.0,0.80026052]
[1730139172494,0.02805399,69274.0,69273.0,0.80526052]
[1730139174640,0.18803102,69274.0,69273.0,0.70136052]
[1730139177075,0.01452721,69274.0,69273.0,0.70136052]
[1730139179736,0.01452721,69274.0,69273.0,0.80066052]
[1730139179949,0.01452721,69274.0,69273.0,0.95001652]
[1730139180171,0.01452721,69274.0,69273.0,1.03291652]
[1730139181652,0.0280531,69274.0,69273.0,1.03291652]
[1730139181883,0.04157899,69274.0,69273.0,1.03291652]
[1730139182095,0.01452721,69274.0,69273.0,1.03291652]
[1730139184538,0.01452721,69274.0,69273.0,0.88356052]
[1730139184762,0.2150729,69274.0,69273.0,0.70136052]
[1730139185197,0.36244589,69274.0,69273.0,0.70136052]
[1730139185415,0.3594269,69274.0,69273.0,0.70136052]
[1730139185650,0.3594269,69274.0,69273.0,0.698318]
[1730139185846,0.370245,69274.0,69273.0,0.698318]
[1730139186078,0.370245,69274.0,69273.0,0.70080264]
[1730139186295,0.35671779,69274.0,69273.0,0.70080264]
[1730139186518,0.21236379,69274.0,69273.0,0.70080264]
[1730139186741,0.20456468,69274.0,69273.0,0.70080264]
[1730139186958,0.21538265,69274.0,69273.0,0.70080264]
[1730139187173,0.34891868,69274.0,69273.0,0.70080264]
[1730139187388,0.34589969,69274.0,69273.0,0.70080264]
[1730139187849,0.20154569,69274.0,69273.0,0.70080264]
[1730139188061,0.20456468,69274.0,69273.0,0.70080264]
[1730139188282,0.24785174,69274.0,69273.0,0.70080264]
[1730139188718,0.20456468,69274.0,69273.0,0.70080264]
[1730139188930,0.20154569,69274.0,69273.0,0.70080264]
[1730139189648,0.05104188,69274.0,69273.0,0.70080264]
[1730139189867,0.02804188,69274.0,69273.0,1.19035489]
[1730139190077,0.02804188,69274.0,69273.0,1.19535489]
[1730139190311,0.01452059,69274.0,69273.0,1.19535489]
[1730139190533,0.001,69274.0,69273.0,1.19535489]
[1730139191199,0.000823,69283.0,69280.0,0.005]
[1730139191386,0.04596436,69282.0,69280.0,0.005]
[1730139191624,0.000823,69283.0,69281.0,0.69810351]
[1730139191810,0.05948387,69282.0,69281.0,0.69810351]
[1730139192985,0.05948387,69282.0,69281.0,0.70310351]
[1730139193211,0.05948387,69282.0,69281.0,0.69810351]
[1730139193426,0.05948387,69282.0,69281.0,0.70010351]
[1730139193859,0.37732468,69282.0,69281.0,0.70010351]
[1730139194290,0.26273833,69282.0,69281.0,0.70010351]
[1730139194509,0.25764314,69282.0,69281.0,0.70610351]
[1730139194726,0.25462415,69282.0,69281.0,0.70010351]
[1730139194939,0.21135444,69282.0,69281.0,0.70010351]
[1730139195160,0.21135444,69282.0,69281.0,0.70062]
[1730139195384,0.21135444,69282.0,69281.0,0.69562]
[1730139195648,0.35569144,69282.0,69281.0,0.70107929]
[1730139196301,0.21135444,69282.0,69281.0,0.69862]
[1730139196519,0.23298271,69282.0,69281.0,0.69862]
[1730139196729,0.23298271,69282.0,69281.0,0.70108012]
[1730139196979,0.23298271,69282.0,69281.0,0.69862]
[1730139197199,0.23298271,69282.0,69281.0,0.7010579]
[1730139197453,0.23398271,69282.0,69281.0,0.7010579]
[1730139197955,0.23398271,69282.0,69281.0,0.6980579]
[1730139198191,0.21235456,69282.0,69281.0,0.6980579]
[1730139198681,0.21235456,69282.0,69281.0,0.7000579]
[1730139198894,0.21235456,69282.0,69281.0,0.6980579]
[1730139199128,0.21135456,69282.0,69281.0,0.6980579]
[1730139199323,0.21135456,69282.0,69281.0,0.7000579]
[1730139200890,0.21135456,69282.0,69281.0,0.6980579]
[1730139201556,0.21135456,69282.0,69281.0,0.7010579]
[1730139203126,0.0270355,69282.0,69281.0,1.0308969]
[1730139203354,0.0270355,69282.0,69281.0,0.8865579]
[1730139203625,0.03785075,69282.0,69281.0,0.8865579]
[1730139203857,0.21135456,69282.0,69281.0,0.8064579]
[1730139204577,0.21135456,69282.0,69281.0,0.7010579]
[1730139206260,0.21115456,69282.0,69281.0,0.7010579]
[1730139206531,0.23278958,69282.0,69281.0,0.7010579]
[1730139208967,0.23278958,69282.0,69281.0,0.7027059]
[1730139209428,0.23279284,69282.0,69281.0,0.7988059]
[1730139209920,0.05928903,69282.0,69281.0,0.7988059]
[1730139211310,0.05928903,69282.0,69281.0,0.8038059]
[1730139211542,0.05928903,69282.0,69281.0,0.8008059]
[1730139211773,0.05928903,69282.0,69281.0,0.8088059]
[1730139211982,0.05928903,69282.0,69281.0,0.7978059]
[1730139212192,0.05928903,69282.0,69281.0,0.7958059]
[1730139212401,0.05928903,69282.0,69281.0,0.8108059]
[1730139212881,0.05928903,69282.0,69281.0,0.8058059]
[1730139213111,0.03515691,69282.0,69281.0,0.8108059]
[1730139213334,0.20866072,69282.0,69281.0,0.8058059]
[1730139213752,0.21947823,69282.0,69281.0,0.8058059]
[1730139213969,0.21947823,69282.0,69281.0,0.8108059]
[1730139214631,0.20866072,69282.0,69281.0,0.8108059]
[1730139214849,0.21947874,69282.0,69281.0,0.8108059]
[1730139215324,0.21947874,69282.0,69281.0,0.8058059]
[1730139215548,0.21947874,69282.0,69281.0,0.7097059]
[1730139215549,0.22647874,69282.0,69281.0,0.7097059]
[1730139215780,0.53157507,69282.0,69281.0,0.7097059]
[1730139215997,0.67782893,69282.0,69281.0,0.7097059]
[1730139216210,0.67782893,69282.0,69281.0,0.707268]
[1730139216444,0.52855608,69282.0,69281.0,0.707268]
[1730139216656,0.52856378,69282.0,69281.0,0.70953563]
[1730139217596,0.52855926,69282.0,69281.0,0.70653563]
[1730139217822,0.52855926,69282.0,69281.0,0.70053563]
[1730139217823,0.53054229,69282.0,69281.0,0.70053563]
[1730139218047,0.52854229,69282.0,69281.0,0.70053563]
[1730139218280,0.81786165,69282.0,69281.0,0.69953563]
[1730139218498,0.89316165,69282.0,69281.0,0.65436892]
[1730139218716,0.89316165,69282.0,69281.0,0.65536892]
[1730139218717,1.02496752,69282.0,69281.0,0.65536892]
[1730139218983,1.09073662,69282.0,69281.0,0.65536892]
[1730139219210,1.04466546,69282.0,69281.0,0.65436892]
[1730139219426,1.08871591,69282.0,69281.0,0.65536892]
[1730139219649,1.08871591,69282.0,69281.0,0.65636892]
[1730139219650,1.08971591,69282.0,69281.0,0.65636892]
[1730139219874,1.09171591,69282.0,69281.0,0.65636892]
[1730139220311,1.09034534,69282.0,69281.0,0.65636892]
[1730139220527,1.10386152,69282.0,69281.0,0.65636892]
[1730139220764,1.10286152,69282.0,69281.0,0.65536892]
[1730139220980,1.10186152,69282.0,69281.0,0.65536892]
[1730139221643,0.529354,69274.0,69273.0,0.001648]
[1730139221858,1.15416881,69274.0,69273.0,0.001648]
[1730139222313,1.15416881,69274.0,69266.0,0.001646]
[1730139222314,0.406368,69267.0,69266.0,0.001646]
[1730139222545,0.89908947,69267.0,69266.0,0.001646]
[1730139222794,0.89908947,69267.0,69245.0,0.001646]
[1730139222795,0.26,69254.0,69245.0,0.001646]
[1730139223037,0.89267317,69254.0,69245.0,0.001646]
[1730139223318,0.52741,69247.0,69245.0,0.001646]
[1730139223554,0.89268817,69247.0,69245.0,0.001646]
[1730139223793,0.277412,69246.0,69245.0,0.001646]
[1730139224021,0.44441509,69246.0,69245.0,0.001646]
[1730139224284,0.005,69233.0,69230.0,0.001648]
[1730139224524,0.28591929,69233.0,69230.0,0.001648]
[1730139224772,0.29670368,69233.0,69230.0,0.001648]
[1730139225002,0.272443,69231.0,69230.0,0.001648]
[1730139225257,0.28894228,69231.0,69230.0,0.001648]
[1730139226494,0.28994228,69231.0,69230.0,0.002648]
[1730139227369,0.1775228,69231.0,69230.0,0.002648]
[1730139227605,0.01443135,69231.0,69230.0,0.002648]
[1730139227855,0.01443135,69231.0,69230.0,0.325294]
[1730139227856,0.001,69231.0,69230.0,0.325294]
[1730139228063,0.003,69231.0,69230.0,0.325294]
[1730139228272,0.002,69231.0,69230.0,0.324294]
[1730139228498,0.03067969,69234.0,69233.0,0.005]
[1730139228707,0.03067969,69234.0,69233.0,0.31823525]
[1730139229154,0.03067969,69234.0,69233.0,0.49913525]
[1730139229363,0.03067969,69234.0,69233.0,0.67025006]
[1730139229581,0.03067969,69234.0,69233.0,0.50145381]
[1730139229799,0.00301899,69250.0,69245.0,0.005]